[Event "*** Titled Tuesday Blitz"]
[Site "Chess.com"]
[Date "2021.02.09"]
[Round "6"]
[White "Chuchofrio1"]
[Black "The_Machine04"]
[Result "1-0"]
[WhiteElo "2316"]
[BlackElo "2459"]
[TimeControl "180+1"]
[EndTime "11:07:37 PST"]
[Termination "Chuchofrio1 won by checkmate"]

1. e4 {[%clk 0:02:58.2]} 1... d6 {[%clk 0:03:00.9]} 2. d4 {[%clk 0:02:58.1]}
2... Nf6 {[%clk 0:03:00.9]} 3. Nc3 {[%clk 0:02:57.9]} 3... e5 {[%clk 0:03:00.6]}
4. Nf3 {[%clk 0:02:51.5]} 4... Nbd7 {[%clk 0:03:00]} 5. Bc4 {[%clk 0:02:48.2]}
5... Be7 {[%clk 0:02:58.2]} 6. Bg5 {[%clk 0:02:45.5]} 6... c6 {[%clk 0:02:57.4]}
7. dxe5 {[%clk 0:02:39.7]} 7... dxe5 {[%clk 0:02:56.1]} 8. O-O {[%clk
0:02:34.5]} 8... h6 {[%clk 0:02:55.4]} 9. Bxf6 {[%clk 0:02:33.5]} 9... Bxf6
{[%clk 0:02:54.2]} 10. Qd2 {[%clk 0:02:28.8]} 10... O-O {[%clk 0:02:51.2]} 11.
Rad1 {[%clk 0:02:27.2]} 11... Qc7 {[%clk 0:02:50.8]} 12. a3 {[%clk 0:02:08.2]}
12... b5 {[%clk 0:02:38.7]} 13. Ba2 {[%clk 0:02:07.5]} 13... Be7 {[%clk
0:02:37.3]} 14. h3 {[%clk 0:02:00.9]} 14... a5 {[%clk 0:02:35.2]} 15. Ne2 {[%clk
0:01:59.4]} 15... Nc5 {[%clk 0:02:33.7]} 16. Ng3 {[%clk 0:01:58.9]} 16... Na4
{[%clk 0:02:24.9]} 17. c4 {[%clk 0:01:54.7]} 17... b4 {[%clk 0:02:20]} 18. Qc2
{[%clk 0:01:08.7]} 18... Nc5 {[%clk 0:02:10.6]} 19. Rd2 {[%clk 0:00:50.3]} 19...
Rb8 {[%clk 0:02:05.5]} 20. axb4 {[%clk 0:00:42.5]} 20... axb4 {[%clk 0:02:06.3]}
21. Bb3 {[%clk 0:00:36.2]} 21... Ne6 {[%clk 0:01:59.8]} 22. Nf5 {[%clk
0:00:27.9]} 22... Bc5 {[%clk 0:01:57.4]} 23. g3 {[%clk 0:00:22.4]} 23... Ng5
{[%clk 0:01:47.7]} 24. Nxg5 {[%clk 0:00:20]} 24... hxg5 {[%clk 0:01:48.5]} 25.
Qd1 {[%clk 0:00:19.6]} 25... g6 {[%clk 0:01:43.4]} 26. Nh6+ {[%clk 0:00:19.1]}
26... Kg7 {[%clk 0:01:42.4]} 27. Ng4 {[%clk 0:00:20]} 27... Be6 {[%clk 0:01:32]}
28. Kg2 {[%clk 0:00:19]} 28... Rbd8 {[%clk 0:01:31.5]} 29. Rxd8 {[%clk
0:00:18.3]} 29... Rxd8 {[%clk 0:01:32.4]} 30. Qf3 {[%clk 0:00:19]} 30... Bxg4
{[%clk 0:01:26.9]} 31. Qxg4 {[%clk 0:00:19.9]} 31... Rd2 {[%clk 0:01:22.9]} 32.
Qxg5 {[%clk 0:00:19.1]} 32... Rxb2 {[%clk 0:01:21.1]} 33. Bd1 {[%clk 0:00:19.7]}
33... Bd4 {[%clk 0:01:18]} 34. h4 {[%clk 0:00:19.6]} 34... Qd6 {[%clk
0:01:13.8]} 35. h5 {[%clk 0:00:19.6]} 35... Qf6 {[%clk 0:01:13.7]} 36. h6+
{[%clk 0:00:19.5]} 36... Kh7 {[%clk 0:01:02]} 37. Qxf6 {[%clk 0:00:20.4]} 37...
Kxh6 {[%clk 0:01:01.4]} 38. Rh1# {[%clk 0:00:19.9]} 1-0

[Event "*** Titled Tuesday Blitz"]
[Site "Chess.com"]
[Date "2021.02.09"]
[Round "6"]
[White "seorobert1971"]
[Black "FairChess_on_YouTube"]
[Result "1/2-1/2"]
[WhiteElo "2721"]
[BlackElo "2940"]
[TimeControl "180+1"]
[EndTime "11:07:39 PST"]
[Termination "Game drawn by repetition"]

1. Nf3 {[%clk 0:03:00.9]} 1... d5 {[%clk 0:02:59.8]} 2. g3 {[%clk 0:03:01.1]}
2... c6 {[%clk 0:02:57.4]} 3. Bg2 {[%clk 0:03:01.5]} 3... Bf5 {[%clk 0:02:58]}
4. O-O {[%clk 0:03:01.9]} 4... e6 {[%clk 0:02:58.5]} 5. d3 {[%clk 0:03:01.7]}
5... h6 {[%clk 0:02:58.7]} 6. Qe1 {[%clk 0:03:01.5]} 6... Bh7 {[%clk 0:02:58.7]}
7. e4 {[%clk 0:03:01.2]} 7... Be7 {[%clk 0:02:58.2]} 8. Qe2 {[%clk 0:03:01]}
8... Nf6 {[%clk 0:02:57.9]} 9. Nc3 {[%clk 0:02:59.9]} 9... O-O {[%clk
0:02:57.6]} 10. Bf4 {[%clk 0:02:57.5]} 10... Nbd7 {[%clk 0:02:56.9]} 11. Ne5
{[%clk 0:02:55.4]} 11... a5 {[%clk 0:02:47]} 12. a4 {[%clk 0:02:53.7]} 12... Re8
{[%clk 0:02:39.2]} 13. Rfd1 {[%clk 0:02:49.6]} 13... Qb6 {[%clk 0:02:37.3]} 14.
Rab1 {[%clk 0:02:47.2]} 14... Bc5 {[%clk 0:02:35.2]} 15. Nxd7 {[%clk 0:02:38.6]}
15... Nxd7 {[%clk 0:02:34.7]} 16. h3 {[%clk 0:02:34.9]} 16... Bd4 {[%clk
0:02:34.2]} 17. Bd2 {[%clk 0:02:30]} 17... Nc5 {[%clk 0:02:28.5]} 18. b3 {[%clk
0:02:27.4]} 18... Na6 {[%clk 0:02:17.8]} 19. Na2 {[%clk 0:02:19.2]} 19... Nb4
{[%clk 0:02:14.1]} 20. Nxb4 {[%clk 0:02:17.1]} 20... axb4 {[%clk 0:02:14.1]} 21.
Rf1 {[%clk 0:02:12.8]} 21... Qc5 {[%clk 0:02:10]} 22. Qd1 {[%clk 0:01:59.7]}
22... dxe4 {[%clk 0:02:06.3]} 23. Bxe4 {[%clk 0:01:57.7]} 23... Bxe4 {[%clk
0:02:04.9]} 24. dxe4 {[%clk 0:01:57.8]} 24... Red8 {[%clk 0:02:05.4]} 25. Qc1
{[%clk 0:01:53.9]} 25... b5 {[%clk 0:01:46.6]} 26. axb5 {[%clk 0:01:52.8]} 26...
Ra2 {[%clk 0:01:44.3]} 27. Be3 {[%clk 0:01:46.9]} 27... Rxc2 {[%clk 0:01:32]}
28. Bxd4 {[%clk 0:01:45.3]} 28... Rxd4 {[%clk 0:01:32.6]} 29. Qf4 {[%clk
0:01:42.7]} 29... cxb5 {[%clk 0:01:29.7]} 30. Rfd1 {[%clk 0:01:37.8]} 30... e5
{[%clk 0:01:25.4]} 31. Qf5 {[%clk 0:01:34]} 31... g6 {[%clk 0:01:04.5]} 32. Qf6
{[%clk 0:01:32.4]} 32... Rxd1+ {[%clk 0:00:59.8]} 33. Rxd1 {[%clk 0:01:30.2]}
33... Rc1 {[%clk 0:01:00.4]} 34. Rxc1 {[%clk 0:01:25.7]} 34... Qxc1+ {[%clk
0:01:01.3]} 35. Kg2 {[%clk 0:01:25.5]} 35... Qc3 {[%clk 0:01:00.2]} 36. Qd8+
{[%clk 0:01:21]} 36... Kg7 {[%clk 0:00:59.9]} 37. Qd5 {[%clk 0:01:20.4]} 37...
h5 {[%clk 0:00:52.2]} 38. h4 {[%clk 0:01:17.3]} 38... Kf6 {[%clk 0:00:30.1]} 39.
Qd6+ {[%clk 0:01:15.8]} 39... Kg7 {[%clk 0:00:30.2]} 40. Qd5 {[%clk 0:01:15.9]}
40... Qb2 {[%clk 0:00:30.1]} 41. Kf1 {[%clk 0:01:12.5]} 41... Qa1+ {[%clk
0:00:26.1]} 42. Kg2 {[%clk 0:01:12.4]} 42... Qc3 {[%clk 0:00:26.6]} 43. Kf1
{[%clk 0:01:11.1]} 43... Kg8 {[%clk 0:00:22.5]} 44. Kg2 {[%clk 0:01:10.5]} 44...
Kf8 {[%clk 0:00:21.3]} 45. Qd8+ {[%clk 0:01:08.7]} 45... Kg7 {[%clk 0:00:21.6]}
46. Qd5 {[%clk 0:01:08.4]} 1/2-1/2

[Event "*** Titled Tuesday Blitz"]
[Site "Chess.com"]
[Date "2021.02.09"]
[Round "6"]
[White "mr_gustavo"]
[Black "LEGENYA1998"]
[Result "0-1"]
[WhiteElo "2403"]
[BlackElo "2257"]
[TimeControl "180+1"]
[EndTime "11:07:39 PST"]
[Termination "LEGENYA1998 won by resignation"]

1. e4 {[%clk 0:03:00.9]} 1... b6 {[%clk 0:02:55.3]} 2. d4 {[%clk 0:02:59.6]}
2... Bb7 {[%clk 0:02:55.5]} 3. Nc3 {[%clk 0:03:00.1]} 3... e6 {[%clk 0:02:54.9]}
4. Nf3 {[%clk 0:03:00.5]} 4... a6 {[%clk 0:02:52]} 5. Bd3 {[%clk 0:03:00.2]}
5... Ne7 {[%clk 0:02:51.5]} 6. O-O {[%clk 0:02:59.3]} 6... d6 {[%clk 0:02:51]}
7. Re1 {[%clk 0:02:58]} 7... Nd7 {[%clk 0:02:50.6]} 8. Bf4 {[%clk 0:02:56.4]}
8... g6 {[%clk 0:02:50.1]} 9. h4 {[%clk 0:02:52.9]} 9... h6 {[%clk 0:02:49.6]}
10. h5 {[%clk 0:02:52.3]} 10... g5 {[%clk 0:02:49.4]} 11. Bg3 {[%clk 0:02:52.8]}
11... Bg7 {[%clk 0:02:49.5]} 12. e5 {[%clk 0:02:45.4]} 12... dxe5 {[%clk
0:02:16.6]} 13. dxe5 {[%clk 0:02:43.1]} 13... Nc5 {[%clk 0:02:14.2]} 14. Qe2
{[%clk 0:02:31.3]} 14... Nxd3 {[%clk 0:02:13.6]} 15. cxd3 {[%clk 0:02:32.1]}
15... Nf5 {[%clk 0:02:13.5]} 16. d4 {[%clk 0:02:27.5]} 16... Nxg3 {[%clk
0:02:01.8]} 17. fxg3 {[%clk 0:02:28.4]} 17... g4 {[%clk 0:01:49.5]} 18. Nh4
{[%clk 0:02:12.9]} 18... Qxd4+ {[%clk 0:01:49.4]} 19. Kh2 {[%clk 0:02:12.7]}
19... O-O {[%clk 0:01:48.8]} 20. Rad1 {[%clk 0:02:10.5]} 20... Qb4 {[%clk
0:01:48.5]} 21. a3 {[%clk 0:02:05.5]} 21... Qb3 {[%clk 0:01:44.9]} 22. Qxg4
{[%clk 0:02:04.6]} 22... Qxb2 {[%clk 0:01:38.4]} 23. Ne4 {[%clk 0:02:03.9]}
23... Qxe5 {[%clk 0:01:33.4]} 24. Nd6 {[%clk 0:01:54.1]} 24... Qg5 {[%clk
0:01:28.4]} 25. Qxg5 {[%clk 0:01:49.7]} 25... hxg5 {[%clk 0:01:28.3]} 26. Nxb7
{[%clk 0:01:50.6]} 26... gxh4 {[%clk 0:01:27.8]} 27. Rd7 {[%clk 0:01:50.5]}
27... hxg3+ {[%clk 0:01:17.1]} 28. Kxg3 {[%clk 0:01:51.4]} 28... Ra7 {[%clk
0:01:17.4]} 29. Nd6 {[%clk 0:01:31.2]} 29... Raa8 {[%clk 0:01:16.5]} 30. Ne4
{[%clk 0:01:25.2]} 30... Rad8 {[%clk 0:01:15.1]} 31. Rxd8 {[%clk 0:01:23.3]}
31... Rxd8 {[%clk 0:01:15.3]} 32. Rc1 {[%clk 0:01:24.2]} 32... Rd4 {[%clk
0:01:05.2]} 33. Kf3 {[%clk 0:01:23.1]} 33... c5 {[%clk 0:01:02.7]} 34. Rh1
{[%clk 0:01:21.1]} 34... Bh6 {[%clk 0:00:57.7]} 35. Rh4 {[%clk 0:01:16.6]} 35...
Kh8 {[%clk 0:00:52.4]} 36. Rh3 {[%clk 0:01:08.4]} 36... c4 {[%clk 0:00:51.1]}
37. Rg3 {[%clk 0:01:07.3]} 37... Rd3+ {[%clk 0:00:46.2]} 38. Kf2 {[%clk
0:01:03.7]} 38... Rxg3 {[%clk 0:00:46]} 39. Kxg3 {[%clk 0:01:04.6]} 39... b5
{[%clk 0:00:44.6]} 40. Kf3 {[%clk 0:01:03.2]} 40... Bg7 {[%clk 0:00:43.7]} 41.
g4 {[%clk 0:01:03.2]} 41... Bd4 {[%clk 0:00:42.8]} 42. g5 {[%clk 0:01:02.3]}
42... a5 {[%clk 0:00:42.8]} 43. Nd6 {[%clk 0:01:01]} 43... c3 {[%clk 0:00:42.3]}
44. Nxf7+ {[%clk 0:00:58.9]} 44... Kg7 {[%clk 0:00:41.6]} 45. Nd8 {[%clk
0:00:56.1]} 45... c2 {[%clk 0:00:37.7]} 46. Nxe6+ {[%clk 0:00:57]} 46... Kf7
{[%clk 0:00:35.4]} 47. Nxd4 {[%clk 0:00:57]} 47... c1=Q {[%clk 0:00:35.1]} 48.
g6+ {[%clk 0:00:57.9]} 0-1

[Event "*** Titled Tuesday Blitz"]
[Site "Chess.com"]
[Date "2021.02.09"]
[Round "6"]
[White "GOGIEFF"]
[Black "VMikhalevski"]
[Result "1-0"]
[WhiteElo "2900"]
[BlackElo "2696"]
[TimeControl "180+1"]
[EndTime "11:07:40 PST"]
[Termination "GOGIEFF won on time"]

1. d4 {[%clk 0:03:00.9]} 1... Nf6 {[%clk 0:03:00.4]} 2. c4 {[%clk 0:03:01.2]}
2... g6 {[%clk 0:03:00.9]} 3. Nc3 {[%clk 0:03:01.4]} 3... d5 {[%clk 0:03:01.5]}
4. Nf3 {[%clk 0:02:57.8]} 4... Bg7 {[%clk 0:03:01.2]} 5. cxd5 {[%clk 0:02:58.1]}
5... Nxd5 {[%clk 0:03:00.5]} 6. Bd2 {[%clk 0:02:58.1]} 6... Nc6 {[%clk
0:02:56.8]} 7. e4 {[%clk 0:02:52.1]} 7... Nxc3 {[%clk 0:02:54.2]} 8. bxc3 {[%clk
0:02:51]} 8... O-O {[%clk 0:02:49.7]} 9. Be2 {[%clk 0:02:42.3]} 9... Na5 {[%clk
0:02:40.9]} 10. c4 {[%clk 0:02:28.4]} 10... c5 {[%clk 0:02:39.7]} 11. d5 {[%clk
0:02:27.1]} 11... e6 {[%clk 0:02:27.4]} 12. O-O {[%clk 0:02:24.5]} 12... b6
{[%clk 0:02:24.9]} 13. Rb1 {[%clk 0:02:14.1]} 13... Ba6 {[%clk 0:02:21]} 14.
Bxa5 {[%clk 0:02:11.6]} 14... bxa5 {[%clk 0:02:21.2]} 15. Qd2 {[%clk 0:02:08.6]}
15... Re8 {[%clk 0:02:18.9]} 16. d6 {[%clk 0:02:01.2]} 16... Rb8 {[%clk
0:02:06]} 17. e5 {[%clk 0:01:59]} 17... Bb7 {[%clk 0:02:02.3]} 18. Rfe1 {[%clk
0:01:43.9]} 18... f6 {[%clk 0:01:38.9]} 19. exf6 {[%clk 0:01:43]} 19... Bxf6
{[%clk 0:01:38.3]} 20. Rb5 {[%clk 0:01:31]} 20... Bxf3 {[%clk 0:01:31.1]} 21.
Bxf3 {[%clk 0:01:24.7]} 21... Bd4 {[%clk 0:01:28.2]} 22. Rxb8 {[%clk 0:01:13.4]}
22... Qxb8 {[%clk 0:01:27.6]} 23. d7 {[%clk 0:01:13.1]} 23... Rf8 {[%clk
0:01:19.8]} 24. Rxe6 {[%clk 0:01:08.1]} 24... Qb1+ {[%clk 0:01:16.2]} 25. Re1
{[%clk 0:01:07.4]} 25... Qf5 {[%clk 0:01:15.6]} 26. Re7 {[%clk 0:00:58.5]} 26...
Qb1+ {[%clk 0:00:19.3]} 27. Qe1 {[%clk 0:00:58.3]} 27... Qxe1+ {[%clk
0:00:18.4]} 28. Rxe1 {[%clk 0:00:59.2]} 28... Kf7 {[%clk 0:00:16.1]} 29. Bd5+
{[%clk 0:00:58.7]} 29... Kg7 {[%clk 0:00:16.1]} 30. Re7+ {[%clk 0:00:53.1]}
30... Kh6 {[%clk 0:00:14.9]} 31. Rf7 {[%clk 0:00:53.3]} 31... Rd8 {[%clk
0:00:05]} 32. h4 {[%clk 0:00:53.2]} 1-0

[Event "*** Titled Tuesday Blitz"]
[Site "Chess.com"]
[Date "2021.02.09"]
[Round "6"]
[White "LamaChampetre"]
[Black "Vamostodorecto"]
[Result "0-1"]
[WhiteElo "2240"]
[BlackElo "2416"]
[TimeControl "180+1"]
[EndTime "11:07:43 PST"]
[Termination "Vamostodorecto won by resignation"]

1. d4 {[%clk 0:03:00.9]} 1... Nf6 {[%clk 0:02:55.7]} 2. c4 {[%clk 0:03:00.8]}
2... g6 {[%clk 0:02:56]} 3. Nc3 {[%clk 0:03:00.5]} 3... d5 {[%clk 0:02:56.6]} 4.
cxd5 {[%clk 0:03:01.4]} 4... Nxd5 {[%clk 0:02:56.9]} 5. e4 {[%clk 0:03:01.8]}
5... Nb6 {[%clk 0:02:57.6]} 6. Be3 {[%clk 0:02:57.9]} 6... Bg7 {[%clk
0:02:58.5]} 7. Nf3 {[%clk 0:02:57]} 7... O-O {[%clk 0:02:59.2]} 8. Be2 {[%clk
0:02:57.1]} 8... Bg4 {[%clk 0:02:55.7]} 9. O-O {[%clk 0:02:56.8]} 9... Nc6
{[%clk 0:02:54.5]} 10. d5 {[%clk 0:02:46.5]} 10... Bxf3 {[%clk 0:02:53.6]} 11.
Bxf3 {[%clk 0:02:29.6]} 11... Ne5 {[%clk 0:02:53.9]} 12. Be2 {[%clk 0:02:28.7]}
12... Nec4 {[%clk 0:02:51.7]} 13. Bc1 {[%clk 0:02:02]} 13... f5 {[%clk
0:02:50.4]} 14. Rb1 {[%clk 0:01:54.7]} 14... Bxc3 {[%clk 0:02:37.6]} 15. bxc3
{[%clk 0:01:50.5]} 15... fxe4 {[%clk 0:02:38.2]} 16. Bh6 {[%clk 0:01:42.7]}
16... Rf6 {[%clk 0:02:24.7]} 17. Bg5 {[%clk 0:01:21.8]} 17... Rf5 {[%clk
0:02:22.1]} 18. Bh6 {[%clk 0:01:01.5]} 18... Qxd5 {[%clk 0:02:20.1]} 19. Qxd5+
{[%clk 0:00:58.1]} 19... Rxd5 {[%clk 0:02:21]} 20. Rxb6 {[%clk 0:00:47.9]} 20...
Nxb6 {[%clk 0:02:19.5]} 21. a4 {[%clk 0:00:43.9]} 21... a5 {[%clk 0:02:09.7]}
22. h3 {[%clk 0:00:39.2]} 22... Rad8 {[%clk 0:01:59]} 23. Bg4 {[%clk 0:00:33.4]}
23... Kf7 {[%clk 0:01:35.5]} 24. Bf4 {[%clk 0:00:29.1]} 24... e5 {[%clk
0:01:15.1]} 25. Bg5 {[%clk 0:00:28.6]} 25... R8d6 {[%clk 0:01:13.2]} 26. Be3
{[%clk 0:00:26.9]} 26... Nc4 {[%clk 0:01:10.7]} 27. Bh6 {[%clk 0:00:24.3]} 27...
c6 {[%clk 0:00:42.8]} 28. Re1 {[%clk 0:00:24.1]} 28... e3 {[%clk 0:00:38.6]} 29.
fxe3 {[%clk 0:00:21.4]} 29... e4 {[%clk 0:00:34.2]} 30. Bg5 {[%clk 0:00:16.9]}
30... Rxg5 {[%clk 0:00:33.2]} 0-1

[Event "*** Titled Tuesday Blitz"]
[Site "Chess.com"]
[Date "2021.02.09"]
[Round "6"]
[White "ZivkovicN"]
[Black "UCantHandleDenker"]
[Result "0-1"]
[WhiteElo "2458"]
[BlackElo "2619"]
[TimeControl "180+1"]
[EndTime "11:07:44 PST"]
[Termination "UCantHandleDenker won by checkmate"]

1. e4 {[%clk 0:03:00.9]} 1... c5 {[%clk 0:02:59]} 2. Nf3 {[%clk 0:03:00.9]} 2...
d6 {[%clk 0:02:59.2]} 3. Bb5+ {[%clk 0:02:59.8]} 3... Bd7 {[%clk 0:02:58.6]} 4.
Bxd7+ {[%clk 0:02:59.6]} 4... Qxd7 {[%clk 0:02:58.9]} 5. c4 {[%clk 0:03:00.5]}
5... Nc6 {[%clk 0:02:58]} 6. Nc3 {[%clk 0:03:00.4]} 6... g6 {[%clk 0:02:58.4]}
7. d4 {[%clk 0:03:00.2]} 7... cxd4 {[%clk 0:02:59.3]} 8. Nxd4 {[%clk 0:03:01.1]}
8... Bg7 {[%clk 0:02:59.1]} 9. Be3 {[%clk 0:02:52.7]} 9... Nf6 {[%clk
0:02:58.8]} 10. f3 {[%clk 0:02:53]} 10... O-O {[%clk 0:02:58.1]} 11. O-O {[%clk
0:02:51.4]} 11... Rfc8 {[%clk 0:02:57.8]} 12. b3 {[%clk 0:02:48.1]} 12... Qd8
{[%clk 0:02:57.3]} 13. Rc1 {[%clk 0:02:46]} 13... a6 {[%clk 0:02:55.6]} 14. Qd2
{[%clk 0:02:42.8]} 14... Rab8 {[%clk 0:02:55.1]} 15. a4 {[%clk 0:02:40.1]} 15...
Qa5 {[%clk 0:02:52.8]} 16. Rfd1 {[%clk 0:02:39]} 16... h5 {[%clk 0:02:18.5]} 17.
h3 {[%clk 0:02:32.2]} 17... Kh7 {[%clk 0:02:12]} 18. Kh1 {[%clk 0:02:31.1]}
18... h4 {[%clk 0:01:52.6]} 19. Nde2 {[%clk 0:02:18.6]} 19... Nh5 {[%clk
0:01:34.2]} 20. Nd5 {[%clk 0:01:31.5]} 20... Qxd2 {[%clk 0:01:32.4]} 21. Rxd2
{[%clk 0:01:30.8]} 21... e6 {[%clk 0:01:26.4]} 22. Nb6 {[%clk 0:01:28.3]} 22...
Rd8 {[%clk 0:01:26.7]} 23. Rcd1 {[%clk 0:01:28]} 23... Na5 {[%clk 0:01:25.5]}
24. Nc1 {[%clk 0:01:20]} 24... Ng3+ {[%clk 0:01:22.6]} 25. Kg1 {[%clk 0:01:20]}
25... Be5 {[%clk 0:01:22.8]} 26. Bg5 {[%clk 0:01:10.4]} 26... f6 {[%clk
0:01:08.5]} 27. Bxh4 {[%clk 0:01:02.4]} 27... g5 {[%clk 0:01:08.2]} 28. Bxg3
{[%clk 0:01:00.2]} 28... Bxg3 {[%clk 0:01:09.1]} 29. c5 {[%clk 0:00:46.5]} 29...
Bf4 {[%clk 0:01:08.9]} 30. Rd3 {[%clk 0:00:44.5]} 30... Bxc1 {[%clk 0:00:58.3]}
31. Rxc1 {[%clk 0:00:45.4]} 31... dxc5 {[%clk 0:00:58.6]} 32. Rxd8 {[%clk
0:00:33.8]} 32... Rxd8 {[%clk 0:00:59.5]} 33. Rxc5 {[%clk 0:00:34.4]} 33... Rd1+
{[%clk 0:00:59.5]} 34. Kh2 {[%clk 0:00:34.1]} 34... Nxb3 {[%clk 0:01:00.3]} 35.
Rc7+ {[%clk 0:00:32.6]} 35... Kg6 {[%clk 0:01:00.7]} 36. Rxb7 {[%clk 0:00:25.1]}
36... Nd2 {[%clk 0:01:00.5]} 37. Kg3 {[%clk 0:00:23]} 37... Rb1 {[%clk 0:00:59]}
38. a5 {[%clk 0:00:21.7]} 38... Rb2 {[%clk 0:00:56.8]} 39. Rb8 {[%clk
0:00:13.2]} 39... Nf1+ {[%clk 0:00:56.3]} 40. Kg4 {[%clk 0:00:11.7]} 40... Rxg2#
{[%clk 0:00:54.9]} 0-1

[Event "*** Titled Tuesday Blitz"]
[Site "Chess.com"]
[Date "2021.02.09"]
[Round "6"]
[White "Vesper2018"]
[Black "northridgehawk"]
[Result "1-0"]
[WhiteElo "2580"]
[BlackElo "2347"]
[TimeControl "180+1"]
[EndTime "11:07:48 PST"]
[Termination "Vesper2018 won by resignation"]

1. e4 {[%clk 0:03:00.9]} 1... e5 {[%clk 0:03:00.1]} 2. Nf3 {[%clk 0:03:00.7]}
2... Nc6 {[%clk 0:03:00.6]} 3. Bb5 {[%clk 0:03:00.6]} 3... a6 {[%clk 0:03:00.1]}
4. Ba4 {[%clk 0:03:00.6]} 4... Nf6 {[%clk 0:03:00.2]} 5. O-O {[%clk 0:02:56.3]}
5... b5 {[%clk 0:02:59.4]} 6. Bb3 {[%clk 0:02:56.2]} 6... Bc5 {[%clk 0:02:59.2]}
7. d3 {[%clk 0:02:51.9]} 7... d6 {[%clk 0:02:59]} 8. a4 {[%clk 0:02:50]} 8...
Rb8 {[%clk 0:02:58.7]} 9. c3 {[%clk 0:02:48]} 9... O-O {[%clk 0:02:55.4]} 10.
Bg5 {[%clk 0:02:46.1]} 10... Be6 {[%clk 0:02:45.4]} 11. Nbd2 {[%clk 0:02:37.7]}
11... Bb6 {[%clk 0:02:41.7]} 12. Bc2 {[%clk 0:02:35.9]} 12... h6 {[%clk
0:02:39.9]} 13. Bh4 {[%clk 0:02:34.8]} 13... g5 {[%clk 0:02:39.4]} 14. Nxg5
{[%clk 0:02:24.3]} 14... hxg5 {[%clk 0:02:40.3]} 15. Bxg5 {[%clk 0:02:24.7]}
15... Kg7 {[%clk 0:02:34.5]} 16. Qf3 {[%clk 0:02:24.2]} 16... Rh8 {[%clk
0:02:27.2]} 17. Bd1 {[%clk 0:02:15]} 17... Kg6 {[%clk 0:02:18.4]} 18. Qg3 {[%clk
0:02:09.2]} 18... Qg8 {[%clk 0:01:59.8]} 19. Bh4+ {[%clk 0:02:00.6]} 19... Kh7
{[%clk 0:01:38]} 20. Bxf6 {[%clk 0:01:58.2]} 20... Qxg3 {[%clk 0:01:37.9]} 21.
hxg3 {[%clk 0:01:58.7]} 21... Rhg8 {[%clk 0:01:38.4]} 22. Bh5 {[%clk 0:01:49.5]}
22... Kh6 {[%clk 0:01:33.4]} 23. Be2 {[%clk 0:01:48.6]} 23... Kg6 {[%clk
0:01:32.9]} 24. Bh4 {[%clk 0:01:47.7]} 24... f6 {[%clk 0:01:31.5]} 25. axb5
{[%clk 0:01:44.9]} 25... axb5 {[%clk 0:01:31.1]} 26. Kh2 {[%clk 0:01:39.7]}
26... Rh8 {[%clk 0:01:27.6]} 27. f4 {[%clk 0:01:37.5]} 27... exf4 {[%clk
0:01:24.6]} 28. Rxf4 {[%clk 0:01:36.9]} 28... Rbf8 {[%clk 0:01:19.8]} 29. Raf1
{[%clk 0:01:35.8]} 29... f5 {[%clk 0:01:18.5]} 30. exf5+ {[%clk 0:01:31.4]}
30... Rxf5 {[%clk 0:01:17.1]} 31. Rxf5 {[%clk 0:01:22.9]} 31... Bxf5 {[%clk
0:01:18]} 32. d4 {[%clk 0:01:23.3]} 32... b4 {[%clk 0:01:15.2]} 33. Nc4 {[%clk
0:01:17]} 33... bxc3 {[%clk 0:01:14.4]} 34. bxc3 {[%clk 0:01:16.9]} 34... Re8
{[%clk 0:01:09]} 35. Bh5+ {[%clk 0:01:13.5]} 35... Kxh5 {[%clk 0:01:07.8]} 36.
Rxf5+ {[%clk 0:01:14]} 36... Kg6 {[%clk 0:01:05.6]} 37. Rf6+ {[%clk 0:01:14.1]}
37... Kg7 {[%clk 0:01:05]} 38. Nxb6 {[%clk 0:01:14.7]} 38... cxb6 {[%clk
0:01:03.8]} 39. Rxd6 {[%clk 0:01:15.3]} 39... Rc8 {[%clk 0:01:01.8]} 40. Bg5
{[%clk 0:01:10.8]} 40... Na5 {[%clk 0:01:00.6]} 41. Rxb6 {[%clk 0:01:07]} 41...
Rxc3 {[%clk 0:00:59.5]} 42. Bd2 {[%clk 0:01:07.4]} 42... Ra3 {[%clk 0:00:49.7]}
43. Bb4 {[%clk 0:01:00]} 43... Ra1 {[%clk 0:00:43.9]} 44. d5 {[%clk 0:00:57.4]}
44... Nc4 {[%clk 0:00:35.9]} 45. Rc6 {[%clk 0:00:55.1]} 45... Ne5 {[%clk
0:00:31.1]} 46. Bc3 {[%clk 0:00:53.8]} 1-0

[Event "*** Titled Tuesday Blitz"]
[Site "Chess.com"]
[Date "2021.02.09"]
[Round "6"]
[White "Dahamdi_Sanudula"]
[Black "chesslh19"]
[Result "1-0"]
[WhiteElo "1772"]
[BlackElo "2227"]
[TimeControl "180+1"]
[EndTime "11:07:50 PST"]
[Termination "Dahamdi_Sanudula won by resignation"]

1. d4 {[%clk 0:03:00.1]} 1... Nf6 {[%clk 0:02:59.8]} 2. e3 {[%clk 0:02:59.7]}
2... d5 {[%clk 0:02:58.6]} 3. Bd3 {[%clk 0:02:59.5]} 3... c5 {[%clk 0:02:58.5]}
4. c3 {[%clk 0:02:58.6]} 4... Nc6 {[%clk 0:02:55.9]} 5. f4 {[%clk 0:02:57.7]}
5... Bg4 {[%clk 0:02:50.3]} 6. Nf3 {[%clk 0:02:57.2]} 6... e6 {[%clk 0:02:46.1]}
7. O-O {[%clk 0:02:52.7]} 7... Be7 {[%clk 0:02:31.8]} 8. Nbd2 {[%clk 0:02:43.1]}
8... O-O {[%clk 0:02:26.6]} 9. Qe1 {[%clk 0:02:40.7]} 9... Bf5 {[%clk
0:02:03.1]} 10. Qe2 {[%clk 0:02:36]} 10... c4 {[%clk 0:01:50]} 11. Bb1 {[%clk
0:02:33.6]} 11... b5 {[%clk 0:01:41]} 12. Ne5 {[%clk 0:02:31.1]} 12... Qc7
{[%clk 0:01:24.4]} 13. Ndf3 {[%clk 0:02:19.6]} 13... Bxb1 {[%clk 0:00:52.1]} 14.
Rxb1 {[%clk 0:02:17.4]} 14... Ne4 {[%clk 0:00:52.3]} 15. Bd2 {[%clk 0:02:15.1]}
15... a5 {[%clk 0:00:41.7]} 16. Be1 {[%clk 0:02:11.2]} 16... Nxe5 {[%clk
0:00:31.5]} 17. fxe5 {[%clk 0:02:06]} 17... f5 {[%clk 0:00:20]} 18. exf6 {[%clk
0:01:54.3]} 18... Bxf6 {[%clk 0:00:19.9]} 19. Nd2 {[%clk 0:01:53.4]} 19... Nxd2
{[%clk 0:00:16.3]} 20. Bxd2 {[%clk 0:01:53.6]} 20... e5 {[%clk 0:00:16.3]} 21.
Be1 {[%clk 0:01:38.2]} 21... exd4 {[%clk 0:00:14.1]} 22. exd4 {[%clk 0:01:37]}
22... Rae8 {[%clk 0:00:14]} 23. Qc2 {[%clk 0:01:36.2]} 23... Bg5 {[%clk
0:00:07.4]} 24. Bg3 {[%clk 0:01:35.1]} 24... Qd7 {[%clk 0:00:05.5]} 25. Rxf8+
{[%clk 0:01:30]} 25... Rxf8 {[%clk 0:00:05.4]} 26. Re1 {[%clk 0:01:29.9]} 26...
Bf6 {[%clk 0:00:04.4]} 27. b3 {[%clk 0:01:26.5]} 27... cxb3 {[%clk 0:00:04.3]}
28. axb3 {[%clk 0:01:26.1]} 28... a4 {[%clk 0:00:04.9]} 29. bxa4 {[%clk
0:01:23.4]} 29... bxa4 {[%clk 0:00:05.8]} 30. Ra1 {[%clk 0:01:23.2]} 30... Ra8
{[%clk 0:00:05]} 31. Qa2 {[%clk 0:01:21.6]} 31... Qc6 {[%clk 0:00:04.5]} 32. h3
{[%clk 0:01:19.7]} 32... Qxc3 {[%clk 0:00:02.9]} 33. Qxd5+ {[%clk 0:01:13.3]}
33... Kf8 {[%clk 0:00:03.2]} 34. Qxa8+ {[%clk 0:01:12.9]} 34... Ke7 {[%clk
0:00:03.8]} 35. Qb7+ {[%clk 0:01:01.5]} 35... Kf8 {[%clk 0:00:03.2]} 36. Qb8+
{[%clk 0:00:59]} 36... Ke7 {[%clk 0:00:02.6]} 37. Qc7+ {[%clk 0:00:59.3]} 37...
Kf8 {[%clk 0:00:02.7]} 38. Qxc3 {[%clk 0:00:58.6]} 1-0